[Event "*** Titled Tuesday Blitz"]
[Site "Chess.com"]
[Date "2020.04.07"]
[Round "9"]
[White "RitvarsReimanis"]
[Black "Man-Chuk"]
[Result "0-1"]
[WhiteElo "2613"]
[BlackElo "2769"]
[TimeControl "180+1"]
[EndTime "14:48:24 PDT"]
[Termination "Man-Chuk won by resignation"]

1. d4 {[%clk 0:03:00.9]} 1... Nf6 {[%clk 0:02:53.3]} 2. c4 {[%clk 0:03:01.1]}
2... g6 {[%clk 0:02:51.9]} 3. Nc3 {[%clk 0:03:00.8]} 3... d5 {[%clk 0:02:51.7]}
4. cxd5 {[%clk 0:03:01.7]} 4... Nxd5 {[%clk 0:02:52.6]} 5. e4 {[%clk 0:03:02.4]}
5... Nxc3 {[%clk 0:02:53]} 6. bxc3 {[%clk 0:03:03.3]} 6... Bg7 {[%clk
0:02:53.2]} 7. Be3 {[%clk 0:03:04.2]} 7... c5 {[%clk 0:02:53.8]} 8. Qd2 {[%clk
0:03:04.4]} 8... Nd7 {[%clk 0:02:48.2]} 9. Rc1 {[%clk 0:03:02.7]} 9... e5 {[%clk
0:02:47.8]} 10. d5 {[%clk 0:03:00.4]} 10... O-O {[%clk 0:02:47.3]} 11. h4 {[%clk
0:02:58.9]} 11... Nf6 {[%clk 0:02:46.1]} 12. f3 {[%clk 0:02:55.7]} 12... b6
{[%clk 0:02:33.8]} 13. Ne2 {[%clk 0:02:50.3]} 13... h5 {[%clk 0:02:26.6]} 14. c4
{[%clk 0:02:49.6]} 14... Ne8 {[%clk 0:02:22.4]} 15. Nc3 {[%clk 0:02:48.2]} 15...
Nd6 {[%clk 0:02:21.9]} 16. Be2 {[%clk 0:02:44.9]} 16... Ba6 {[%clk 0:02:21.1]}
17. Nd1 {[%clk 0:02:38.7]} 17... Qd7 {[%clk 0:02:15.1]} 18. Nf2 {[%clk
0:02:22.9]} 18... Qa4 {[%clk 0:02:12.6]} 19. Qc2 {[%clk 0:02:13.1]} 19... Qxc2
{[%clk 0:02:09.1]} 20. Rxc2 {[%clk 0:02:14]} 20... f5 {[%clk 0:02:08.7]} 21. Bg5
{[%clk 0:02:11.2]} 21... Bf6 {[%clk 0:02:01.7]} 22. Bxf6 {[%clk 0:01:19.9]}
22... Rxf6 {[%clk 0:02:02.6]} 23. Bd3 {[%clk 0:01:19.5]} 23... Bc8 {[%clk
0:02:01.1]} 24. Ke2 {[%clk 0:01:16.6]} 24... Bd7 {[%clk 0:01:59.9]} 25. Rb2
{[%clk 0:01:14.3]} 25... f4 {[%clk 0:01:55.2]} 26. Ra1 {[%clk 0:01:12.5]} 26...
g5 {[%clk 0:01:51.7]} 27. hxg5 {[%clk 0:01:06.7]} 27... Rg6 {[%clk 0:01:51.9]}
28. Rh1 {[%clk 0:00:54.1]} 28... Rxg5 {[%clk 0:01:46.5]} 29. Rh2 {[%clk
0:00:54.4]} 29... Kf7 {[%clk 0:01:32.6]} 30. Rb1 {[%clk 0:00:47.1]} 30... Rag8
{[%clk 0:01:29.7]} 31. Rbh1 {[%clk 0:00:46]} 31... Kg6 {[%clk 0:01:12.3]} 32.
Kd2 {[%clk 0:00:41.5]} 32... Kh6 {[%clk 0:01:07.1]} 33. Bf1 {[%clk 0:00:41.3]}
33... a6 {[%clk 0:01:03.9]} 34. Kc3 {[%clk 0:00:39.1]} 34... b5 {[%clk
0:01:03.7]} 35. cxb5 {[%clk 0:00:22.8]} 35... axb5 {[%clk 0:01:04.6]} 36. Nd3
{[%clk 0:00:20.6]} 36... b4+ {[%clk 0:01:03]} 37. Kb2 {[%clk 0:00:19.8]} 37...
Nc4+ {[%clk 0:00:54.1]} 38. Kc1 {[%clk 0:00:16.4]} 38... Ne3 {[%clk 0:00:48.3]}
39. Kb2 {[%clk 0:00:12.7]} 39... Bb5 {[%clk 0:00:43.3]} 40. Be2 {[%clk
0:00:08.4]} 40... Bxd3 {[%clk 0:00:38.6]} 41. Bxd3 {[%clk 0:00:07.2]} 41... c4
{[%clk 0:00:39.3]} 42. Bf1 {[%clk 0:00:06.5]} 42... Nxf1 {[%clk 0:00:29.6]} 43.
Rxf1 {[%clk 0:00:07.4]} 43... Rxg2+ {[%clk 0:00:28.6]} 44. Rf2 {[%clk 0:00:08]}
44... Rxf2+ {[%clk 0:00:25.6]} 45. Rxf2 {[%clk 0:00:07.7]} 45... h4 {[%clk
0:00:25.6]} 46. a3 {[%clk 0:00:06.1]} 46... bxa3+ {[%clk 0:00:23.9]} 47. Kxa3
{[%clk 0:00:07]} 47... h3 {[%clk 0:00:21.6]} 48. Rh2 {[%clk 0:00:07.2]} 48...
Rg3 {[%clk 0:00:20.7]} 49. Kb4 {[%clk 0:00:07.6]} 49... Rxf3 {[%clk 0:00:18.1]}
50. Kxc4 {[%clk 0:00:07.2]} 50... Re3 {[%clk 0:00:17.9]} 51. d6 {[%clk
0:00:07.6]} 51... Kg5 {[%clk 0:00:14.3]} 52. d7 {[%clk 0:00:07.1]} 52... Rxe4+
{[%clk 0:00:14.4]} 53. Kd5 {[%clk 0:00:07.5]} 53... Rd4+ {[%clk 0:00:14.9]} 54.
Kxe5 {[%clk 0:00:05.6]} 54... Rxd7 {[%clk 0:00:14.7]} 55. Rxh3 {[%clk
0:00:06.1]} 55... Re7+ {[%clk 0:00:13.8]} 56. Kd4 {[%clk 0:00:06.7]} 56... Kg4
{[%clk 0:00:13.9]} 57. Rh7 {[%clk 0:00:06.8]} 57... Rxh7 {[%clk 0:00:13.7]} 0-1

[Event "*** Titled Tuesday Blitz"]
[Site "Chess.com"]
[Date "2020.04.07"]
[Round "9"]
[White "Hubbery"]
[Black "Orest_Vovk"]
[Result "0-1"]
[WhiteElo "2619"]
[BlackElo "2504"]
[TimeControl "180+1"]
[EndTime "14:48:24 PDT"]
[Termination "Orest_Vovk won on time"]

1. d4 {[%clk 0:03:00.9]} 1... Nc6 {[%clk 0:02:59.3]} 2. Nf3 {[%clk 0:02:48.7]}
2... d6 {[%clk 0:02:58.6]} 3. Nc3 {[%clk 0:02:43.2]} 3... e5 {[%clk 0:02:58.6]}
4. dxe5 {[%clk 0:02:38.3]} 4... Nxe5 {[%clk 0:02:57.9]} 5. Nxe5 {[%clk
0:02:35.1]} 5... dxe5 {[%clk 0:02:58.8]} 6. Qxd8+ {[%clk 0:02:35.9]} 6... Kxd8
{[%clk 0:02:58.5]} 7. a3 {[%clk 0:02:36.5]} 7... c6 {[%clk 0:02:58.3]} 8. e4
{[%clk 0:02:35.1]} 8... Be6 {[%clk 0:02:58.1]} 9. Be3 {[%clk 0:02:35.1]} 9...
Kc7 {[%clk 0:02:57.4]} 10. O-O-O {[%clk 0:02:33.4]} 10... Nf6 {[%clk 0:02:57]}
11. f3 {[%clk 0:02:31.6]} 11... Be7 {[%clk 0:02:56.4]} 12. Be2 {[%clk
0:02:30.6]} 12... Rhd8 {[%clk 0:02:55.8]} 13. Rxd8 {[%clk 0:02:16.8]} 13... Bxd8
{[%clk 0:02:51.5]} 14. Na4 {[%clk 0:02:14.7]} 14... b6 {[%clk 0:02:49.6]} 15.
Rd1 {[%clk 0:02:10.9]} 15... Be7 {[%clk 0:02:49.3]} 16. b4 {[%clk 0:02:08.6]}
16... Rd8 {[%clk 0:02:45.3]} 17. c4 {[%clk 0:02:07.3]} 17... Rxd1+ {[%clk
0:02:44.4]} 18. Kxd1 {[%clk 0:02:08.2]} 18... Nd7 {[%clk 0:02:38.5]} 19. Kc2
{[%clk 0:02:06.7]} 19... f6 {[%clk 0:02:23]} 20. Nb2 {[%clk 0:02:05.2]} 20... a5
{[%clk 0:02:12.3]} 21. Kc3 {[%clk 0:02:03.5]} 21... axb4+ {[%clk 0:02:05.7]} 22.
axb4 {[%clk 0:02:04.4]} 22... Nb8 {[%clk 0:02:00.5]} 23. Nd3 {[%clk 0:01:51.1]}
23... Na6 {[%clk 0:01:50.5]} 24. Bd1 {[%clk 0:01:50.4]} 24... c5 {[%clk
0:01:34.6]} 25. b5 {[%clk 0:01:43.1]} 25... Nb4 {[%clk 0:01:33.5]} 26. Nxb4
{[%clk 0:01:21.3]} 26... cxb4+ {[%clk 0:01:34.4]} 27. Kb3 {[%clk 0:01:22.2]}
27... Bc5 {[%clk 0:01:30.4]} 28. Bd2 {[%clk 0:01:21.2]} 28... Kd6 {[%clk
0:01:13.4]} 29. Bxb4 {[%clk 0:01:20.5]} 29... Bxb4 {[%clk 0:01:02.2]} 30. Kxb4
{[%clk 0:01:21.4]} 30... f5 {[%clk 0:01:02.1]} 31. exf5 {[%clk 0:01:03.5]} 31...
Bxf5 {[%clk 0:01:01.4]} 32. Be2 {[%clk 0:01:04.1]} 32... e4 {[%clk 0:00:59]} 33.
c5+ {[%clk 0:00:53.9]} 33... bxc5+ {[%clk 0:00:58.5]} 34. Ka5 {[%clk 0:00:54.8]}
34... e3 {[%clk 0:00:47]} 35. Ka6 {[%clk 0:00:50.5]} 35... Be6 {[%clk
0:00:20.4]} 36. b6 {[%clk 0:00:45.5]} 36... Bd5 {[%clk 0:00:17.4]} 37. Ka7
{[%clk 0:00:33.4]} 37... Ke5 {[%clk 0:00:13.6]} 38. Bc4 {[%clk 0:00:29.6]} 38...
Bc6 {[%clk 0:00:06.2]} 39. Bb5 {[%clk 0:00:24.8]} 39... Bd5 {[%clk 0:00:02]} 40.
Kb8 {[%clk 0:00:11.8]} 40... Kd4 {[%clk 0:00:02.2]} 41. Kc7 {[%clk 0:00:12.1]}
41... c4 {[%clk 0:00:01.7]} 42. Bc6 {[%clk 0:00:11.9]} 42... c3 {[%clk
0:00:01.8]} 43. b7 {[%clk 0:00:08.1]} 43... c2 {[%clk 0:00:02.7]} 44. b8=Q
{[%clk 0:00:08.5]} 44... c1=Q {[%clk 0:00:03.6]} 45. Qb4+ {[%clk 0:00:08.3]}
45... Kd3 {[%clk 0:00:04.5]} 46. Qb5+ {[%clk 0:00:04.9]} 46... Kd2 {[%clk
0:00:04.3]} 47. Qxd5+ {[%clk 0:00:04.4]} 47... Ke1 {[%clk 0:00:04.9]} 48. Kd6
{[%clk 0:00:02.1]} 48... e2 {[%clk 0:00:03.8]} 49. Bb5 {[%clk 0:00:02.4]} 49...
Kf2 {[%clk 0:00:01.5]} 0-1

[Event "*** Titled Tuesday Blitz"]
[Site "Chess.com"]
[Date "2020.04.07"]
[Round "9"]
[White "dmosesov"]
[Black "swisspower96"]
[Result "1-0"]
[WhiteElo "2505"]
[BlackElo "2644"]
[TimeControl "180+1"]
[EndTime "14:48:25 PDT"]
[Termination "dmosesov won by resignation"]

1. d4 {[%clk 0:03:00.4]} 1... Nf6 {[%clk 0:02:50.2]} 2. c4 {[%clk 0:02:59.9]}
2... e6 {[%clk 0:02:49.7]} 3. Nf3 {[%clk 0:03:00]} 3... d5 {[%clk 0:02:48.1]} 4.
Nc3 {[%clk 0:03:00.1]} 4... Bb4 {[%clk 0:02:47.7]} 5. Qb3 {[%clk 0:02:59.2]}
5... c5 {[%clk 0:02:34.9]} 6. dxc5 {[%clk 0:02:59.2]} 6... Nc6 {[%clk
0:02:34.5]} 7. Bg5 {[%clk 0:02:02.4]} 7... h6 {[%clk 0:02:22.5]} 8. Bxf6 {[%clk
0:01:58.2]} 8... Qxf6 {[%clk 0:02:23.4]} 9. cxd5 {[%clk 0:01:53.6]} 9... exd5
{[%clk 0:02:22.5]} 10. e3 {[%clk 0:01:52.8]} 10... Be6 {[%clk 0:02:16.3]} 11.
Bb5 {[%clk 0:01:47.6]} 11... Bxc5 {[%clk 0:02:08.3]} 12. O-O {[%clk 0:01:42.7]}
12... O-O {[%clk 0:02:05.3]} 13. Qc2 {[%clk 0:01:30]} 13... Rac8 {[%clk
0:01:58.8]} 14. a3 {[%clk 0:01:26.1]} 14... Bb6 {[%clk 0:01:54.2]} 15. Qd2
{[%clk 0:01:20.7]} 15... Rfd8 {[%clk 0:01:52.7]} 16. Bxc6 {[%clk 0:01:10.1]}
16... bxc6 {[%clk 0:01:50.1]} 17. Nd4 {[%clk 0:01:10.1]} 17... Bd7 {[%clk
0:01:50.3]} 18. b4 {[%clk 0:01:06.1]} 18... Qg6 {[%clk 0:01:49.1]} 19. Kh1
{[%clk 0:01:04]} 19... c5 {[%clk 0:01:38.3]} 20. Nxd5 {[%clk 0:00:56.1]} 20...
Qd6 {[%clk 0:00:59.8]} 21. bxc5 {[%clk 0:00:47.5]} 21... Bxc5 {[%clk 0:00:53.3]}
22. Nc3 {[%clk 0:00:44.2]} 22... Bxa3 {[%clk 0:00:37]} 23. Ne4 {[%clk
0:00:27.5]} 23... Qe7 {[%clk 0:00:27.9]} 24. Qd3 {[%clk 0:00:27.8]} 24... Bc5
{[%clk 0:00:09.3]} 25. Nxc5 {[%clk 0:00:27.4]} 25... Qxc5 {[%clk 0:00:10.2]} 26.
h3 {[%clk 0:00:25.9]} 26... a5 {[%clk 0:00:10.5]} 27. Qd2 {[%clk 0:00:20.9]}
27... a4 {[%clk 0:00:10.4]} 28. Rfc1 {[%clk 0:00:20.9]} 28... Qd6 {[%clk
0:00:06.9]} 29. Rxc8 {[%clk 0:00:20]} 29... Rxc8 {[%clk 0:00:07.8]} 30. Qa5
{[%clk 0:00:20.2]} 30... Qc5 {[%clk 0:00:05.2]} 31. Qa6 {[%clk 0:00:17.3]} 31...
Qc3 {[%clk 0:00:05]} 32. Rd1 {[%clk 0:00:13.8]} 32... a3 {[%clk 0:00:04.7]} 33.
Ne2 {[%clk 0:00:14.1]} 33... Qc4 {[%clk 0:00:03.5]} 34. Qxc4 {[%clk 0:00:08.2]}
34... Rxc4 {[%clk 0:00:04.4]} 35. Rxd7 {[%clk 0:00:08.9]} 35... Rc2 {[%clk
0:00:04.4]} 36. Ra7 {[%clk 0:00:08.8]} 36... Rxe2 {[%clk 0:00:04.4]} 37. Rxa3
{[%clk 0:00:08.6]} 37... Rxf2 {[%clk 0:00:05.2]} 38. Kg1 {[%clk 0:00:09]} 38...
Rb2 {[%clk 0:00:05.6]} 39. Kh2 {[%clk 0:00:08.9]} 39... g6 {[%clk 0:00:06.1]}
40. Kg3 {[%clk 0:00:09.4]} 40... Kg7 {[%clk 0:00:06.7]} 41. Kf3 {[%clk
0:00:10.3]} 41... h5 {[%clk 0:00:07.6]} 42. g4 {[%clk 0:00:09.4]} 42... Rb6
{[%clk 0:00:08.2]} 43. gxh5 {[%clk 0:00:09.6]} 43... gxh5 {[%clk 0:00:09.1]} 44.
Ra5 {[%clk 0:00:10.3]} 44... Rf6+ {[%clk 0:00:09.2]} 45. Kg3 {[%clk 0:00:10.4]}
45... Kh6 {[%clk 0:00:10]} 46. h4 {[%clk 0:00:10.4]} 46... Rg6+ {[%clk
0:00:10.6]} 47. Kf3 {[%clk 0:00:05.7]} 47... Rg4 {[%clk 0:00:10.8]} 48. Rf5
{[%clk 0:00:04.1]} 48... Kg6 {[%clk 0:00:10.5]} 49. Rf4 {[%clk 0:00:04.7]} 49...
f5 {[%clk 0:00:10.3]} 50. e4 {[%clk 0:00:02.8]} 50... fxe4+ {[%clk 0:00:09]} 51.
Rxe4 {[%clk 0:00:03.7]} 51... Rg1 {[%clk 0:00:08.8]} 52. Re2 {[%clk 0:00:03.1]}
52... Rh1 {[%clk 0:00:08.4]} 53. Rg2+ {[%clk 0:00:03.2]} 53... Kf5 {[%clk
0:00:08.7]} 54. Rg5+ {[%clk 0:00:03.1]} 54... Kf6 {[%clk 0:00:09.2]} 55. Rxh5
{[%clk 0:00:04]} 55... Kg6 {[%clk 0:00:09.6]} 56. Rg5+ {[%clk 0:00:04.5]} 56...
Kh6 {[%clk 0:00:10.3]} 57. Rg4 {[%clk 0:00:05]} 57... Ra1 {[%clk 0:00:10.9]} 58.
Ra4 {[%clk 0:00:05.6]} 58... Ra3+ {[%clk 0:00:11.4]} 59. Rxa3 {[%clk 0:00:05.6]}
1-0

[Event "*** Titled Tuesday Blitz"]
[Site "Chess.com"]
[Date "2020.04.07"]
[Round "9"]
[White "jaskol95"]
[Black "florianschwabeneder"]
[Result "0-1"]
[WhiteElo "2385"]
[BlackElo "2522"]
[TimeControl "180+1"]
[EndTime "14:48:25 PDT"]
[Termination "florianschwabeneder won by resignation"]

1. d4 {[%clk 0:03:00.9]} 1... c5 {[%clk 0:02:59.3]} 2. d5 {[%clk 0:03:00.1]}
2... Nf6 {[%clk 0:02:58.7]} 3. Nc3 {[%clk 0:03:00.5]} 3... d6 {[%clk 0:02:58]}
4. e4 {[%clk 0:03:01]} 4... g6 {[%clk 0:02:58]} 5. Nf3 {[%clk 0:02:58.7]} 5...
Bg7 {[%clk 0:02:58.1]} 6. Bc4 {[%clk 0:02:57.4]} 6... O-O {[%clk 0:02:57.2]} 7.
O-O {[%clk 0:02:57.3]} 7... Na6 {[%clk 0:02:52.7]} 8. Re1 {[%clk 0:02:50.4]}
8... Nc7 {[%clk 0:02:49.2]} 9. a4 {[%clk 0:02:49.7]} 9... b6 {[%clk 0:02:48.8]}
10. Bg5 {[%clk 0:02:45.5]} 10... a6 {[%clk 0:02:46.6]} 11. Qd2 {[%clk
0:02:43.6]} 11... Bb7 {[%clk 0:02:44.3]} 12. Bh6 {[%clk 0:02:35.2]} 12... Qd7
{[%clk 0:02:26]} 13. Rad1 {[%clk 0:02:30.7]} 13... b5 {[%clk 0:02:23.7]} 14.
axb5 {[%clk 0:02:30.9]} 14... axb5 {[%clk 0:02:23.8]} 15. Bd3 {[%clk 0:02:21]}
15... b4 {[%clk 0:02:15.9]} 16. Ne2 {[%clk 0:02:05.6]} 16... c4 {[%clk
0:01:55.9]} 17. Bxg7 {[%clk 0:02:01.4]} 17... cxd3 {[%clk 0:01:49.9]} 18. Bxf8
{[%clk 0:01:56]} 18... dxe2 {[%clk 0:01:49.4]} 19. Rxe2 {[%clk 0:01:55.5]} 19...
Rxf8 {[%clk 0:01:48.2]} 20. Qxb4 {[%clk 0:01:55.9]} 20... Na6 {[%clk 0:01:41.1]}
21. Qd4 {[%clk 0:01:54.3]} 21... Qc7 {[%clk 0:01:37.7]} 22. e5 {[%clk
0:01:45.1]} 22... dxe5 {[%clk 0:01:37.3]} 23. Qxe5 {[%clk 0:01:44.7]} 23... Qxe5
{[%clk 0:01:12.3]} 24. Rxe5 {[%clk 0:01:43.8]} 24... Rc8 {[%clk 0:01:01.3]} 25.
c3 {[%clk 0:01:31]} 25... Nc5 {[%clk 0:00:54.4]} 26. d6 {[%clk 0:00:41.6]} 26...
e6 {[%clk 0:00:41.1]} 27. h3 {[%clk 0:00:36.5]} 27... Nfd7 {[%clk 0:00:38]} 28.
Re3 {[%clk 0:00:34.5]} 28... Na4 {[%clk 0:00:36.9]} 29. Rd2 {[%clk 0:00:27.3]}
29... Rc5 {[%clk 0:00:27.8]} 30. Nd4 {[%clk 0:00:25.2]} 30... Nab6 {[%clk
0:00:22.7]} 31. b3 {[%clk 0:00:22.4]} 31... Rd5 {[%clk 0:00:22.1]} 32. c4 {[%clk
0:00:18.3]} 32... Rxd6 {[%clk 0:00:20.6]} 33. Red3 {[%clk 0:00:18.5]} 33... Nc5
{[%clk 0:00:17.3]} 34. Re3 {[%clk 0:00:17.2]} 34... Na6 {[%clk 0:00:14.4]} 35.
Nf3 {[%clk 0:00:14.1]} 35... Rxd2 {[%clk 0:00:13.9]} 36. Nxd2 {[%clk 0:00:15]}
36... Kf8 {[%clk 0:00:14.1]} 37. Kf1 {[%clk 0:00:15.2]} 37... Ke7 {[%clk
0:00:14.1]} 38. h4 {[%clk 0:00:14.2]} 38... h5 {[%clk 0:00:13.7]} 39. g3 {[%clk
0:00:14.5]} 39... Nb4 {[%clk 0:00:13.9]} 40. Ke2 {[%clk 0:00:13.7]} 40... Nd7
{[%clk 0:00:14.2]} 41. Ne4 {[%clk 0:00:13.8]} 41... Bxe4 {[%clk 0:00:13.4]} 42.
Rxe4 {[%clk 0:00:13.5]} 42... Nc5 {[%clk 0:00:14.3]} 43. Re3 {[%clk 0:00:13.3]}
43... Kd6 {[%clk 0:00:13.4]} 44. Kd2 {[%clk 0:00:12.7]} 44... f5 {[%clk
0:00:13.1]} 45. Kc3 {[%clk 0:00:12.9]} 45... Nc6 {[%clk 0:00:11.2]} 46. b4
{[%clk 0:00:12.5]} 46... Ne4+ {[%clk 0:00:11.6]} 47. Kb3 {[%clk 0:00:11.2]}
47... Nd2+ {[%clk 0:00:09.6]} 48. Kc3 {[%clk 0:00:11.4]} 48... Ne4+ {[%clk
0:00:09.8]} 49. Kb3 {[%clk 0:00:09.3]} 49... Nxf2 {[%clk 0:00:10]} 50. b5 {[%clk
0:00:08.9]} 50... Nd4+ {[%clk 0:00:09.5]} 51. Kc3 {[%clk 0:00:07.6]} 51... e5
{[%clk 0:00:07.5]} 52. b6 {[%clk 0:00:06.5]} 52... Ne4+ {[%clk 0:00:06.8]} 53.
Kb4 {[%clk 0:00:06.4]} 53... Kc6 {[%clk 0:00:07.1]} 54. c5 {[%clk 0:00:06.8]}
54... Nxc5 {[%clk 0:00:06.4]} 55. Rxe5 {[%clk 0:00:07]} 55... Nd7 {[%clk
0:00:05.3]} 56. Re7 {[%clk 0:00:05.6]} 56... Nxb6 {[%clk 0:00:05.2]} 57. Rg7
{[%clk 0:00:06.2]} 57... Nd5+ {[%clk 0:00:06.1]} 58. Kc4 {[%clk 0:00:05.7]}
58... Ne6 {[%clk 0:00:05.5]} 59. Rxg6 {[%clk 0:00:06]} 59... Kd6 {[%clk
0:00:06.4]} 60. Kd3 {[%clk 0:00:05.8]} 60... Ke5 {[%clk 0:00:05]} 61. Ke2 {[%clk
0:00:05.8]} 61... Ndf4+ {[%clk 0:00:05]} 62. gxf4+ {[%clk 0:00:04]} 62... Nxf4+
{[%clk 0:00:05.9]} 63. Kf3 {[%clk 0:00:04.7]} 63... Nxg6 {[%clk 0:00:06.8]} 64.
Kg3 {[%clk 0:00:04.7]} 64... f4+ {[%clk 0:00:07.1]} 0-1

[Event "*** Titled Tuesday Blitz"]
[Site "Chess.com"]
[Date "2020.04.07"]
[Round "9"]
[White "garfield_pg"]
[Black "steepedgames"]
[Result "1/2-1/2"]
[WhiteElo "2242"]
[BlackElo "2436"]
[TimeControl "180+1"]
[EndTime "14:48:33 PDT"]
[Termination "Game drawn by repetition"]

1. e4 {[%clk 0:03:00.9]} 1... e6 {[%clk 0:02:59.8]} 2. d4 {[%clk 0:03:00.5]}
2... d5 {[%clk 0:03:00.4]} 3. Nc3 {[%clk 0:03:01.4]} 3... Nf6 {[%clk 0:03:00.2]}
4. Bg5 {[%clk 0:03:01]} 4... Bb4 {[%clk 0:02:59.7]} 5. e5 {[%clk 0:03:00.8]}
5... h6 {[%clk 0:03:00.3]} 6. Bd2 {[%clk 0:03:01]} 6... Bxc3 {[%clk 0:03:00.1]}
7. bxc3 {[%clk 0:03:01.9]} 7... Ne4 {[%clk 0:03:00.7]} 8. Qg4 {[%clk 0:03:02.4]}
8... g6 {[%clk 0:03:01.2]} 9. Bd3 {[%clk 0:03:02.8]} 9... Nxd2 {[%clk
0:03:01.8]} 10. Kxd2 {[%clk 0:03:03.1]} 10... c5 {[%clk 0:03:02.5]} 11. dxc5
{[%clk 0:03:04]} 11... Nc6 {[%clk 0:03:02.3]} 12. Nf3 {[%clk 0:03:04.3]} 12...
Qe7 {[%clk 0:02:52.4]} 13. Qf4 {[%clk 0:03:03.8]} 13... Qxc5 {[%clk 0:02:50.9]}
14. Nd4 {[%clk 0:03:04.3]} 14... Nxd4 {[%clk 0:02:34.1]} 15. cxd4 {[%clk
0:02:59.9]} 15... Qb4+ {[%clk 0:02:30.1]} 16. c3 {[%clk 0:02:56]} 16... Qe7
{[%clk 0:02:29.4]} 17. Bb5+ {[%clk 0:02:18.3]} 17... Bd7 {[%clk 0:02:28.3]} 18.
Bxd7+ {[%clk 0:02:17.4]} 18... Kxd7 {[%clk 0:02:29.2]} 19. Rhb1 {[%clk
0:02:15.7]} 19... b6 {[%clk 0:02:20.3]} 20. a4 {[%clk 0:02:13.3]} 20... Rab8
{[%clk 0:02:15.6]} 21. a5 {[%clk 0:02:09.5]} 21... b5 {[%clk 0:02:15.9]} 22. a6
{[%clk 0:02:05.8]} 22... Rb6 {[%clk 0:01:59.5]} 23. Ra5 {[%clk 0:02:04.3]} 23...
Rhb8 {[%clk 0:01:40.8]} 24. Rb4 {[%clk 0:01:39.2]} 24... g5 {[%clk 0:01:33.7]}
25. Qf3 {[%clk 0:01:34.9]} 25... Kc6 {[%clk 0:01:23.3]} 26. Qh5 {[%clk
0:01:20.7]} 26... Rh8 {[%clk 0:01:14]} 27. g3 {[%clk 0:01:17.5]} 27... f5 {[%clk
0:01:05]} 28. Qe2 {[%clk 0:00:41.4]} 28... Rhb8 {[%clk 0:01:00.1]} 29. Qh5
{[%clk 0:00:39.4]} 29... Qg7 {[%clk 0:00:57.6]} 30. Qe2 {[%clk 0:00:29.8]} 30...
g4 {[%clk 0:00:54.1]} 31. Kd3 {[%clk 0:00:22]} 31... h5 {[%clk 0:00:53.8]} 32.
Qe3 {[%clk 0:00:19.5]} 32... Rg8 {[%clk 0:00:49.7]} 33. Kd2 {[%clk 0:00:17.3]}
33... Qg5 {[%clk 0:00:48.8]} 34. Kd3 {[%clk 0:00:16.2]} 34... h4 {[%clk
0:00:46.3]} 35. Qxg5 {[%clk 0:00:11.3]} 35... Rxg5 {[%clk 0:00:45.6]} 36. Ke3
{[%clk 0:00:11.9]} 36... hxg3 {[%clk 0:00:44.4]} 37. hxg3 {[%clk 0:00:12.1]}
37... Rh5 {[%clk 0:00:43.7]} 38. Rb1 {[%clk 0:00:10.3]} 38... Rh2 {[%clk
0:00:42.2]} 39. Ra2 {[%clk 0:00:07]} 39... Kd7 {[%clk 0:00:37.8]} 40. Ra5 {[%clk
0:00:06.3]} 40... Kc6 {[%clk 0:00:38]} 41. Ra2 {[%clk 0:00:06.4]} 41... Rh7
{[%clk 0:00:27.1]} 42. Ra5 {[%clk 0:00:06.3]} 42... Rc7 {[%clk 0:00:26.7]} 43.
Kd3 {[%clk 0:00:06.4]} 43... Rc8 {[%clk 0:00:25.2]} 44. Rb2 {[%clk 0:00:06.7]}
44... Rcb8 {[%clk 0:00:25.7]} 45. Rb1 {[%clk 0:00:06.7]} 45... b4 {[%clk
0:00:23.9]} 46. Rc5+ {[%clk 0:00:06.2]} 46... Kd7 {[%clk 0:00:23.4]} 47. c4
{[%clk 0:00:06.3]} 47... dxc4+ {[%clk 0:00:22.5]} 48. Kxc4 {[%clk 0:00:06.9]}
48... Rxa6 {[%clk 0:00:21.2]} 49. d5 {[%clk 0:00:06.7]} 49... exd5+ {[%clk
0:00:18.2]} 50. Rxd5+ {[%clk 0:00:07.6]} 50... Ke6 {[%clk 0:00:18.2]} 51. Rh1
{[%clk 0:00:05.9]} 51... Rc6+ {[%clk 0:00:17.7]} 52. Kd4 {[%clk 0:00:05.7]}
52... Rcc8 {[%clk 0:00:05.5]} 53. Rh6+ {[%clk 0:00:05.8]} 53... Kf7 {[%clk
0:00:05.7]} 54. Rd7+ {[%clk 0:00:04.7]} 54... Kg8 {[%clk 0:00:06.2]} 55. Rhh7
{[%clk 0:00:03.3]} 55... Rd8 {[%clk 0:00:05.5]} 56. Rg7+ {[%clk 0:00:02.7]}
56... Kf8 {[%clk 0:00:06]} 57. Rf7+ {[%clk 0:00:03.2]} 57... Ke8 {[%clk
0:00:06.6]} 58. Re7+ {[%clk 0:00:03.5]} 58... Kf8 {[%clk 0:00:07.3]} 59. Rf7+
{[%clk 0:00:04]} 59... Kg8 {[%clk 0:00:07.9]} 60. Rg7+ {[%clk 0:00:04.3]} 60...
Kh8 {[%clk 0:00:08.5]} 61. Rh7+ {[%clk 0:00:04.5]} 61... Kg8 {[%clk 0:00:09]}
62. Rg7+ {[%clk 0:00:04.5]} 1/2-1/2